Cogmind - Beta 13 @@@ ROGUE MODE // 2024.04.06 @ 23:09:39 Player: chexo4 Result: Destroyed by Y-45 Defender with Beam Rifle Performance ------------- Evolutions (2) 1000 Regions Visited (3) 600 Robots Destroyed (34) 170 Value Destroyed (1048) 1048 Prototype IDs (1) 20 Alien Tech Used (0) 0 Bonus (143) 143 TOTAL SCORE: 2981 Bonus ------- High Alert Combat Kills 143 Cogmind --------- Core Integrity 0/550 Matter 91/300 Energy 100/100 System Corruption 0% Temperature Cool (18) Movement Core (350) Ox6 Location -8/Materials Parts ------- > --- POWER (2) -------- (None) > --- PROPULSION (4) --- (None) > --- UTILITY (3) ------ Large Storage Unit > --- WEAPON (2) ------- (None) > --- INVENTORY (15) --- Heavy Armor Plating EM Pulse Gun Particle Gun Light Assault Rifle Peak State ------------ > --- POWER ------------ Light Ion Engine > --- PROPULSION ------- Armored Wheel > --- UTILITY ---------- Large Storage Unit Heavy Armor Plating > --- WEAPON ----------- Advanced Beam Cannon Shotgun > --- INVENTORY -------- EM Pulse Gun Particle Gun Field Laser Assault Rifle Light Assault Rifle Grenade Launcher [Rating: 15] Favorites ----------- Power Light Ion Engine Engine Light Ion Engine Propulsion Compact Wheel Wheel Compact Wheel Utility Large Storage Unit Device Improved Terrain Scanner Storage Large Storage Unit Protection Heavy Armor Plating Weapon Grenade Launcher Energy Gun EM Pulse Gun Energy Cannon Advanced Beam Cannon Ballistic Gun Assault Rifle Launcher Grenade Launcher Build | -11 -10 -9 -8 ------- Run | Yrd Mat Mat Mat Slots Evolved 4 | . . 2 2 Power 1 | . . . 1 Propulsion 2 | . . 2 . Utility 1 | . . . 1 Weapon . | . . . . Parts Attached 34 | 8 3 14 9 Power 4 | 1 1 1 1 Engine 4 | 1 1 1 1 Core . | . . . . Reactor . | . . . . Propulsion 6 | 2 . 3 1 Treads . | . . . . Leg . | . . . . Wheel 6 | 2 . 3 1 Hover . | . . . . Flight . | . . . . Utility 4 | 2 . 1 1 Device 1 | 1 . . . Storage 2 | 1 . 1 . Processor . | . . . . Hackware . | . . . . Protection 1 | . . . 1 Artifact . | . . . . Weapon 20 | 3 2 9 6 Energy Gun 5 | 1 . 2 2 Energy Cannon 1 | . . . 1 Ballistic Gun 9 | 2 1 4 2 Ballistic Cannon . | . . . . Launcher 5 | . 1 3 1 Special Weapon . | . . . . Impact Weapon . | . . . . Slashing Weapon . | . . . . Piercing Weapon . | . . . . Special Melee Weapon . | . . . . Unidentified Prototypes 1 | . . . 1 Corrupted Parts 1 | 1 . . . System Corruption 1 | 1 . . . Parts Lost 14 | . . 5 9 Power 3 | . . 1 2 Propulsion 4 | . . 2 2 Utility 1 | . . 1 . Weapon 6 | . . 1 5 Highest Loss Streak 8 | . . 2 8 To Critical Strikes . | . . . . Average Slot Usage (%) 75 | . 100 71 37 Engine 8 | . 14 5 6 Wheel 24 | . 28 28 5 Device 6 | . 14 4 . Storage 11 | . 14 11 9 Energy Gun 4 | . 7 2 4 Ballistic Gun 9 | . 14 9 4 Launcher 8 | . 6 10 3 Naked Turns . | . . . . Heaviest Build 30 | 13 14 30 30 Greatest Support 44 | 32 32 44 12 Greatest Overweight (x) 9 | 3 . 2 9 Average Overweight (x) . | . . . 2 Largest Inventory Capacity 15 | 8 8 15 15 Average Capacity 12 | 7 8 14 15 Most Carried 9 | 4 4 7 9 Average Carried 4 | 1 2 5 6 Final Capacity 15 | 8 8 15 15 Final Carried 5 | 2 4 4 5 Class Distribution -------------------- 100% | Mutant Dominant Class ---------------- Mutant | -10/Materials Mutant | -9/Materials Mutant | -8/Materials Resources | -11 -10 -9 -8 ----------- Run | Yrd Mat Mat Mat Matter Collected 950 | 185 156 490 119 Remotely . | . . . . Salvage Created 990 | 73 214 644 59 Parts 69 | 4 11 48 6 Haulers Intercepted . | . . . . Recyclers Shooed 4 | . . 4 . Parts Field Recycled . | . . . . Retrieved Matter . | . . . . Parts Self-Destructed . | . . . . Prevented . | . . . . Kills | -11 -10 -9 -8 ------- Run | Yrd Mat Mat Mat Combat Hostiles Destroyed 21 | . 5 15 1 Guns 5 | . 2 3 . Cannons 1 | . . . 1 AOE 15 | . 3 12 . Classes Destroyed 8 | 2 1 5 . Worker 5 | . . 4 1 Builder 2 | . . 2 . Tunneler 1 | 1 . . . Recycler 4 | 1 1 2 . Watcher 1 | . . 1 . Grunt 17 | . 5 12 . Duelist 1 | . . 1 . Sentry 3 | . . 2 1 Best Kill Streak 11 | 1 3 11 1 Combat Bots Only 7 | . 2 7 1 Max Kills in Single Turn 2 | 1 2 2 1 Gunslinging . | . . . . Exploded 2 | . 2 2 . Melee . | . . . . Uniques/NPCs Destroyed . | . . . . Combat | -11 -10 -9 -8 -------- Run | Yrd Mat Mat Mat Hostile Shots Fired 147 | . 15 32 100 Missed 33 | . 3 8 22 Damage Taken 2131 | . 303 522 1306 Core 843 | . 87 198 558 Absorbed by Shields . | . . . . Core Remaining (%) 71 | 100 65 50 . Volleys Fired 104 | 5 29 60 10 Largest 2 | 2 2 2 2 Hottest 91 | 60 60 65 91 Shots Fired 150 | 6 48 80 16 Gun 90 | 6 38 39 7 Cannon 8 | . . . 8 Launcher 52 | . 10 41 1 Special . | . . . . Kinetic 64 | 5 19 34 6 Thermal 14 | . . 5 9 Explosive 52 | . 10 41 1 Electromagnetic 20 | 1 19 . . Robot Hit Streak 9 | 2 9 7 7 Robot Miss Streak 3 | 2 3 2 3 Penetration Max . | . . . . Secondary Targets . | . . . . Shots Hit Robots 75 | 3 27 35 10 Core Hits 68 | 2 12 48 6 Critical Kills . | . . . . Critical Parts Destroyed . | . . . . Critical Strikes . | . . . . Melee Attacks . | . . . . Impact . | . . . . Slashing . | . . . . Piercing . | . . . . Sneak Attacks . | . . . . Combat Hostiles . | . . . . Follow-up Attacks . | . . . . Damage Inflicted 2536 | 42 543 1662 289 Guns 724 | 42 290 305 87 Cannons 102 | . . . 102 Explosions 1700 | . 253 1349 98 Melee . | . . . . Ramming 10 | . . 8 2 Kinetic 431 | 27 110 225 69 Thermal 338 | . 138 80 120 Explosive 1318 | . 115 1105 98 Electromagnetic 439 | 15 180 244 . Impact . | . . . . Slashing . | . . . . Piercing . | . . . . Highest Corruption 1 | 1 1 . . Average Corruption 1 | 1 1 . . Corruption Purged . | . . . . Corruption Blocked . | . . . . Effects 3 | . 3 . . Matter Fused 1 | . 1 . . Heat Flow Errors 1 | . 1 . . Data Loss (minor) 1 | . 1 . . Overload Shots . | . . . . Overflow Damage 39 | . . 39 . Projectiles . | . . . . Explosions 39 | . . 39 . Melee . | . . . . Knockbacks . | . . . . Impact . | . . . . Kinetic . | . . . . Secondary . | . . . . Self-Inflicted Damage 397 | . 167 202 28 Shots 14 | . 5 8 1 Rammed 2 | . . 1 1 Targets Rammed 2 | . . 1 1 Kicked . | . . . . Crushed . | . . . . Highest Temperature 202 | . 202 108 79 Average Temperature 35 | . 34 45 32 Received Heat Transfer 924 | . 72 168 684 Siege Activations . | . . . . Robots Corrupted . | . . . . Combat Hostiles . | . . . . Parts Fried . | . . . . Impact Corruptions . | . . . . Robots Melted . | . . . . Combat Hostiles . | . . . . Parts Melted 3 | . . 2 1 Heat Transferred 557 | . 150 185 222 Parts Sabotaged . | . . . . Parts Stolen . | . . . . Parts Stripped . | . . . . Power Chain Reactions 3 | . 3 . . Alert | -11 -10 -9 -8 ------- Run | Yrd Mat Mat Mat Peak Influence 773 | 10 347 773 367 Initial 326 | . 6 146 326 Average 297 | 6 167 422 334 Maximum Alert Level 3 | . 1 3 1 Low Security (%) 34 | 100 44 25 . Level 1 42 | . 55 26 100 Level 2 16 | . . 35 . Level 3 6 | . . 13 . Level 4 . | . . . . Level 5 . | . . . . High Security . | . . . . Max Security . | . . . . Squads Dispatched 6 | . 2 3 1 Investigation 3 | . 1 1 1 Extermination . | . . . . Reinforcement 3 | . 1 2 . Assault . | . . . . Garrison . | . . . . Intercept . | . . . . Searches Triggered . | . . . . Construction Impeded 1 | . . 1 . Haulers Reinforced . | . . . . Active Scanning Responses . | . . . . Cargo Convoy Interrupts . | . . . . Stealth | -11 -10 -9 -8 --------- Run | Yrd Mat Mat Mat Distress Signals 3 | . 1 2 . Communications Jammed . | . . . . Distress Signals . | . . . . Times Spotted 37 | . 8 23 6 Peak Tracking Total 4 | . 2 4 4 Tactical Retreats 1 | . . 1 . Traps | -11 -10 -9 -8 ------- Run | Yrd Mat Mat Mat Traps Triggered . | . . . . Indirectly . | . . . . Trap Hack Attempts . | . . . . Triggered . | . . . . Disarmed . | . . . . Reprogrammed . | . . . . Reused . | . . . . Traps Extracted . | . . . . Installed . | . . . . Triggered . | . . . . Machines | -11 -10 -9 -8 ---------- Run | Yrd Mat Mat Mat Machines Disabled 20 | . 7 13 . Max in Single Turn 2 | . 2 2 . Machines Repaired . | . . . . Machines Dismantled . | . . . . Machines Sabotaged . | . . . . Overloaded Fab Kills . | . . . . Hacking | -11 -10 -9 -8 --------- Run | Yrd Mat Mat Mat Machines Accessed 4 | . 2 1 1 Terminals 3 | . 2 . 1 Fabricators . | . . . . Repair Stations . | . . . . Recycling Units . | . . . . Scanalyzers 1 | . . 1 . Garrison Access . | . . . . Total Hacks 15 | . 6 7 2 Successful 9 | . 3 6 . Failed 6 | . 3 1 2 Catastrophic . | . . . . Database Lockouts . | . . . . Manual . | . . . . Terminals 8 | . 6 . 2 Fabricators . | . . . . Repair Stations . | . . . . Recycling Units . | . . . . Scanalyzers 7 | . . 7 . Garrison Access . | . . . . Terminal Hacks 3 | . 3 . . Scanalyzer Index 1 | . 1 . . Locate Traps 1 | . 1 . . Dispatch Records 1 | . 1 . . Fabricator Hacks . | . . . . Repair Station Hacks . | . . . . Recycling Unit Hacks . | . . . . Scanalyzer 6 | . . 6 . Insert Component 3 | . . 3 . Analyze 3 | . . 3 . Garrison Access Hacks . | . . . . Unauthorized Hacks . | . . . . Terminals . | . . . . Fabricators . | . . . . Repair Stations . | . . . . Recycling Units . | . . . . Scanalyzers . | . . . . Garrison Access . | . . . . Data Cores Recovered . | . . . . Used . | . . . . Hacking Detections 4 | . 2 1 1 Full Trace Events 4 | . 2 1 1 Feedback Events . | . . . . Feedback Blocked . | . . . . Robot Schematics Acquired . | . . . . Robots Built . | . . . . Authchips . | . . . . Time . | . . . . Total Robot Build Rating . | . . . . Part Schematics Acquired 3 | . . 3 . Parts Built . | . . . . Authchips . | . . . . Time . | . . . . Total Part Build Rating . | . . . . Parts Repaired . | . . . . Time . | . . . . Parts Recycled . | . . . . Recycled Matter . | . . . . Retrieved Matter . | . . . . Retrieved Components . | . . . . Parts Scanalyzed 3 | . . 3 . Part Schematics Acquired 3 | . . 3 . Parts Damaged . | . . . . Bothacking | -11 -10 -9 -8 ------------ Run | Yrd Mat Mat Mat Used RIF Installer . | . . . . Robots Hacked . | . . . . Non-combat . | . . . . Combat . | . . . . Robot Hacks Applied . | . . . . Relay Couplers Released . | . . . . Fabnet Peak Effective % . | . . . . Robots Rewired . | . . . . Allies Hacked . | . . . . Hacks Repelled . | . . . . Allies | -11 -10 -9 -8 -------- Run | Yrd Mat Mat Mat Total Allies . | . . . . Largest Group . | . . . . Highest-Rated Group . | . . . . Highest-Rated Ally . | . . . . Total Orders . | . . . . Ally Attacks . | . . . . Total Damage . | . . . . Kills . | . . . . Allies Corrupted . | . . . . Allies Melted . | . . . . Intel | -11 -10 -9 -8 ------- Run | Yrd Mat Mat Mat Robot Analysis Total . | . . . . Derelict Logs Recovered . | . . . . Drone Launches . | . . . . Drone Recoveries . | . . . . Exploration | -11 -10 -9 -8 ------------- Run | Yrd Mat Mat Mat Turns Passed 1307 | 124 371 624 188 Spaces Moved 911 | 77 292 457 85 Core 37 | 24 . . 13 Treads . | . . . . Legs . | . . . . Wheels 874 | 53 292 457 72 Hover . | . . . . Flight . | . . . . Fastest Speed 50 | 50 100 96 110 Average Speed 108 | 122 100 99 170 Slowest Speed 500 | 200 100 120 500 Overloaded Moves . | . . . . Propulsion Burnouts . | . . . . Robots Hopped . | . . . . Cave-ins Triggered . | . . . . Exploration Rate (%) 21 | 4 42 29 9 Regions Visited 3 Branch Regions . Pre-discovered Areas . | . . . . Known Exits Taken . | . . . . Unknown Exits Taken 3 | 1 1 1 . Scrap Searched . | . . . . Spaces Dug 103 | . 41 62 . Terrain Destroyed 313 | . 80 224 9 Melee . | . . . . Projectile . | . . . . AOE 313 | . 80 224 9 Terrain Rammed . | . . . . Walls Destroyed . | . . . . Machines Disabled . | . . . . Actions | -11 -10 -9 -8 --------- Run | Yrd Mat Mat Mat Total 1083 | 100 325 547 111 Wait 7 | . . 7 . Move 908 | 76 291 456 85 Hop . | . . . . Pick Up 21 | 10 2 4 5 Fast Attach . | . . . . Attach 20 | 7 . 7 6 Detach 5 | . . 4 1 Swap 14 | 1 3 7 3 Drop 2 | 1 . 1 . Fire 104 | 5 29 60 10 Melee . | . . . . Ram 2 | . . 1 1 Kick . | . . . . Crush . | . . . . Escape Stasis . | . . . . Rewire . | . . . . Trap . | . . . . Miscellaneous . | . . . . Route ------- -11/Scrapyard -10/Materials -9/Materials -8/Materials History --------- Turn | Location | Event 25 | -11/Scrapyard | Discovered new exit (range 16) 125 | -11/Scrapyard | Entered Materials 332 | -10/Materials | Build established: Mutant 490 | -10/Materials | Discovered new exit (range 3) 496 | -10/Materials | Entered another Materials area 496 | -9/Materials | Evolved 2 slots: Propulsion x2 870 | -9/Materials | Destroyed 7 combat bots 1059 | -9/Materials | Discovered new exit (range 15) 1120 | -9/Materials | Entered another Materials area 1120 | -8/Materials | Evolved 2 slots: Power x1, Utility x1 1295 | -8/Materials | Core integrity fell below 50% 1302 | -8/Materials | Core integrity fell below 20% 1308 | -8/Materials | Destroyed by Y-45 Defender with Beam Rifle Last Messages --------------- Critical hit (Burn: +37). Acquired Lgt. Ion Engine. Shotgun destroyed. Lgt. Ion Engine destroyed. Critical hit (Burn: +37). Assault Rifle destroyed. Wheel destroyed. Adv. Beam Cannon destroyed. R-06 Scavenger collects Med. Matter Pod. Grenade Launcher destroyed. Critical hit (Burn: +37). U-05 Engineer lays Concrete. U-05 Engineer builds a Wall. Critical hit (Burn: +37). U-05 Engineer lays Concrete. Field Laser destroyed. U-05 Engineer builds a Wall. U-05 Engineer lays Concrete. U-05 Engineer builds a Wall. U-05 Engineer lays Concrete. Map ----- +----------------------------------------------------+ | ?????????????????????????????????????????????? | | ?????????????????????????????????????????????? | | ?????????????????????????????????????????????? | | ?????????????????????????????????????????????? | | ?????????????????????????????????????????????? | | ?????????????????????????????????????????????? | | ?????????????????????????????????????????????? | | ?????????????????????????????????????????????? | | ???????????????????????+#????????????????????? | | ??????????????????????? ????????????????????? | | ??????????????????????? ????????????????????? | | ??????????????????????# +?????????????????? | | ??????????????????????# #????????????????? | | ??????????????????????# #????????????????? | | ??????????????????????# #?????????????????# | | ??????????????????????# #?????????????????# | | ??????????????????????+ #?????????????????# | | ??????????????????????# #?????????????????# | | ???????????????###????# #?????????????????# | | ???????????????#! !???# ##????????????????+ | | ???????????????# ??## ?????????????????# | | ???????????????# ?## #?????????????????# | | ???????????????# """?# uu###???????????????# | | ???????????????# """ ##Y #???????????????# | | ???????????????# """ # ! ################# | | ???????????????# @ = g "%" | | ???????????????# """ # ! gu " | | ???????????????# """ # [ ############ ### | | ???????????????# """?## g#####??#[ ### ### | | ???????????????# ??# ######## # ## | | ???????????????#/ ???# + ][ # """ # " ## | | ???????????????####???# # [ + """ + "T | | ??????????????????????# # # """ # ## | | ????????????????????? + # # #? | | ???????????????????? # # """ ###+#### | | ??????????????????? ###### + """ # | | ??????????????????#??????######## """ # | | ????????????????????????????????# # ! | | ????????????????????????????????####### | | ??????????????????????????????????????######## | | | | | | | | | | | | | | | | | | | | | +----------------------------------------------------+ Best States ------------- Heat Dissipation 31 Energy Generation 10 Energy Capacity 125 Matter Stores 292 Matter Capacity 300 Sight Range 16 Terrain Scan Range 16 Terrain Scan Density 10 Evasion (%) 40 Item Schematics ----------------- Arm. Wheel | -9/Materials | Scanalyzed Grenade Launcher | -9/Materials | Scanalyzed Lgt. Ion Engine | -9/Materials | Scanalyzed Robot Schematics ------------------ None Fabricated ------------ Nothing Alien Tech Used ----------------- None Achievements -------------- None Challenges ------------ None Game ------ Seed VortexMappingNanovents Manual? 0 Play Time 00:16:17 Cumulative 11.1 hours Start 2024.04.06 @ 22:55:10 End 2024.04.06 @ 23:09:39 Sessions 1 Manual Loads 0 Difficulty Rogue Special Mode None Game No. 26 Rogue 26 Adventurer 0 Explorer 0 Win Type - Total 0 Types 0/0/0/0/0/0/0/0/0 Lore% 15 Gallery% 22 Achievement% 17 Wizard Run 0 Options --------- Layout 1 ASCII 0 Keyboard 0 Movement Arrows Keybinds 0 Fullscreen 1 Font 24/Smallcaps Map View 50x35 Zoom Use 0% Tactical HUD 0 Map Filters NONE Filters NONE Steam 1 RUN: cf177ee7-23bf-492b-96b9-09c64dbe8d43